Cogmind - Beta 16.1 @@@ ROGUE MODE // 2026.05.02 @ 15:00:41 Player: beans Result: Destroyed by 31-WCJ(R) with Subdweller Beam Cannon Performance ------------- Evolutions (0) 0 Regions Visited (2) 400 Robots Destroyed (7) 35 Value Destroyed (190) 190 Prototype IDs (0) 0 Alien Tech Used (0) 0 Bonus (0) 0 TOTAL SCORE: 625 Bonus ------- None Cogmind --------- Core Integrity 0/250 Matter 74/300 Energy 200/200 System Corruption 0% Temperature Cool (9) Movement Rolling (110) Location -10/Subcaves Parts ------- > --- POWER (1) -------- Subdweller Power Source > --- PROPULSION (2) --- Subdweller Monowheel Subdweller Monowheel > --- UTILITY (2) ------ Makeshift System Restoration Module > --- WEAPON (2) ------- Battle Rifle Battle Cannon > --- INVENTORY (5) ---- Subdweller Laser Subdweller Beam Cannon Subdweller Machine Gun Barrage Gun Flamer Peak State ------------ > --- POWER ------------ Subdweller Power Source > --- PROPULSION ------- Subdweller Monowheel Subdweller Monowheel > --- UTILITY ---------- Makeshift System Restoration Module > --- WEAPON ----------- Barrage Gun Flamer > --- INVENTORY -------- Subdweller Laser Subdweller Beam Cannon Battle Rifle Subdweller Machine Gun Battle Cannon [Rating: 16] Favorites ----------- Power Subdweller Power Source Engine Subdweller Power Source Propulsion Subdweller Monowheel Treads Light Treads Wheel Subdweller Monowheel Utility Makeshift System Restoration Module Device Makeshift System Restoration Module Weapon Subdweller Laser Energy Gun Subdweller Laser Energy Cannon Subdweller Beam Cannon Ballistic Gun Battle Rifle Ballistic Cannon Battle Cannon Special Weapon Flamer Build | -11 -10 -10 ------- Run | Yrd Mat Sub Slots Evolved . | . . . Power . | . . . Propulsion . | . . . Utility . | . . . Weapon . | . . . Parts Attached 15 | 3 . 12 Power 3 | 1 . 2 Engine 3 | 1 . 2 Core . | . . . Reactor . | . . . Propulsion 5 | 2 . 3 Treads 2 | 2 . . Leg . | . . . Wheel 3 | . . 3 Hover . | . . . Flight . | . . . Utility 1 | . . 1 Device 1 | . . 1 Storage . | . . . Processor . | . . . Hackware . | . . . Protection . | . . . Artifact . | . . . Weapon 6 | . . 6 Energy Gun 1 | . . 1 Energy Cannon 1 | . . 1 Ballistic Gun 2 | . . 2 Ballistic Cannon 1 | . . 1 Launcher . | . . . Special Weapon 1 | . . 1 Impact Weapon . | . . . Slashing Weapon . | . . . Piercing Weapon . | . . . Special Melee Weapon . | . . . Unidentified Prototypes . | . . . Parts Lost 3 | . . 3 Power . | . . . Propulsion 3 | . . 3 Utility . | . . . Weapon . | . . . Highest Loss Streak 2 | . . 2 To Critical Strikes . | . . . Average Backups 2 | . 1 2 Power . | . 1 . Propulsion . | . . . Utility . | . . . Weapon 1 | . . 2 Tool/Special . | . . . Unused Backups 2 | . . 2 Power 1 | . . 1 Propulsion . | . . . Utility . | . . . Weapon 1 | . . 1 Tool/Special . | . . . Average Slot Usage (%) 64 | . 42 67 Engine 14 | . 14 14 Treads 9 | . 28 6 Wheel 13 | . . 15 Device 9 | . . 10 Energy Gun 4 | . . 5 Energy Cannon 4 | . . 5 Ballistic Gun 5 | . . 6 Ballistic Cannon 1 | . . 1 Special Weapon 1 | . . 1 Peak Build Rating 16 | 3 3 16 Average Rating 9 | 1 3 10 On Entrance 2 | . 3 3 Avg Prop Armor Cover (%) 22 | . . 22 Naked Turns . | . . . Heaviest Build 22 | 3 3 22 Greatest Support 40 | 40 40 40 Greatest Overweight (x) 7 | . . 7 Average Overweight (x) . | . . . Largest Inventory Capacity 5 | 5 5 5 Average Capacity 5 | 5 5 5 Most Carried 5 | 3 1 5 Average Carried 2 | . 1 2 Final Capacity 5 | 5 5 5 Final Carried 5 | 1 1 5 Class Distribution -------------------- 74% | Mutant 25% | Derelict-Mutant Dominant Class ---------------- Mutant | -10/Materials Mutant | -10/Subcaves Resources | -11 -10 -10 ----------- Run | Yrd Mat Sub Matter Collected 321 | 157 . 164 Remotely . | . . . Salvage Created 168 | . . 168 Parts 11 | . . 11 Haulers Intercepted . | . . . Recyclers Shooed . | . . . Parts Field Recycled . | . . . Retrieved Matter . | . . . Parts Self-Destructed 9 | . . 9 Prevented . | . . . Parts Restored . | . . . Kills | -11 -10 -10 ------- Run | Yrd Mat Sub Combat Hostiles Destroyed 7 | . . 7 Melee 3 | . . 3 Guns 2 | . . 2 Cannons 2 | . . 2 Classes Destroyed 3 | . . 3 Swarmer 3 | . . 3 Artisan 1 | . . 1 Subdweller 4 | . . 4 Best Kill Streak 2 | . . 2 Combat Bots Only 2 | . . 2 Max Kills in Single Turn 1 | . . 1 Gunslinging . | . . . Exploded . | . . . Melee 1 | . . 1 Uniques/NPCs Destroyed . | . . . Combat | -11 -10 -10 -------- Run | Yrd Mat Sub Hostile Shots Fired 76 | . . 76 Missed 22 | . . 22 Hits 54 | . . 54 Projectile 54 | . . 54 Damage Taken 813 | . . 813 Core 254 | . . 254 Absorbed by Shields . | . . . Core Remaining (%) 100 | 100 . . Volleys Fired 71 | . . 71 Largest 2 | . . 2 Hottest 140 | . . 140 Shots Fired 110 | . . 110 Gun 80 | . . 80 Cannon 23 | . . 23 Launcher . | . . . Special 7 | . . 7 Kinetic 63 | . . 63 Thermal 47 | . . 47 Explosive . | . . . Electromagnetic . | . . . Robot Hit Streak 11 | . . 11 Robot Miss Streak 2 | . . 2 Penetration Max . | . . . Secondary Targets . | . . . Shots Hit Robots 18 | . . 18 Core Hits 11 | . . 11 Critical Kills . | . . . Critical Parts Destroyed . | . . . Critical Strikes 2 | . . 2 Burn 1 | . . 1 Blast 1 | . . 1 Melee Attacks . | . . . Impact . | . . . Slashing . | . . . Piercing . | . . . Sneak Attacks . | . . . Combat Hostiles . | . . . Follow-up Attacks . | . . . Damage Inflicted 366 | . 3 363 Guns 144 | . . 144 Cannons 147 | . . 147 Explosions . | . . . Melee . | . . . Ramming 32 | . 3 29 Kinetic 127 | . . 127 Thermal 207 | . . 207 Explosive . | . . . Electromagnetic . | . . . Impact . | . . . Slashing . | . . . Piercing . | . . . Highest Corruption . | . . . Average Corruption . | . . . Corruption Purged . | . . . Corruption Blocked . | . . . Overload Shots . | . . . Overflow Damage . | . . . Projectiles . | . . . Explosions . | . . . Melee . | . . . Knockbacks . | . . . Impact . | . . . Kinetic . | . . . Secondary . | . . . Self-Inflicted Damage 6 | . . 6 Shots . | . . . Rammed 34 | . 2 32 Targets Rammed 37 | . 2 35 Kicked . | . . . Crushed 3 | . . 3 Highest Temperature 72 | . . 72 Average Temperature 18 | . . 18 Received Heat Transfer 102 | . . 102 Siege Activations . | . . . Martial Activations . | . . . Shielding Activations . | . . . Robots Disrupted . | . . . Combat Hostiles . | . . . Robots Corrupted . | . . . Combat Hostiles . | . . . Parts Fried . | . . . Impact Corruptions . | . . . Robots Melted . | . . . Combat Hostiles . | . . . Parts Melted 1 | . . 1 Heat Transferred 703 | . . 703 Parts Sabotaged . | . . . Parts Stolen . | . . . Parts Stripped . | . . . Power Chain Reactions . | . . . Alert | -11 -10 -10 ------- Run | Yrd Mat Sub Maximum Alert Level . | . . . Low Security (%) 100 | 100 100 . Level 1 . | . . . Level 2 . | . . . Level 3 . | . . . Level 4 . | . . . Level 5 . | . . . High Security . | . . . Max Security . | . . . Peak Influence . | . . . Initial . | . . . Average . | . . . Influence Increases 70 | . . 70 Destroy 0b10 Robot/C 60 | . . 60 Destroy Leader 10 | . . 10 Influence Decreases 70 | . . 70 Time Decay 70 | . . 70 Squads Dispatched 1 | . 1 . Investigation . | . . . Extermination . | . . . Reinforcement 1 | . 1 . Assault . | . . . Garrison . | . . . Intercept . | . . . Searches Triggered . | . . . Construction Impeded . | . . . Haulers Reinforced . | . . . Active Scanning Responses . | . . . Cargo Convoy Interrupts . | . . . Stealth | -11 -10 -10 --------- Run | Yrd Mat Sub Distress Signals . | . . . Communications Jammed . | . . . Distress Signals . | . . . Times Spotted 12 | . 3 9 Peak Tracking Total 3 | . 2 3 Tactical Retreats 1 | . . 1 Traps | -11 -10 -10 ------- Run | Yrd Mat Sub Traps Triggered . | . . . Indirectly . | . . . Trap Hack Attempts . | . . . Triggered . | . . . Disarmed . | . . . Reprogrammed . | . . . Reused . | . . . Traps Extracted . | . . . Installed . | . . . Triggered . | . . . Machines | -11 -10 -10 ---------- Run | Yrd Mat Sub Machines Disabled . | . . . Max in Single Turn . | . . . Machines Repaired . | . . . Machines Dismantled . | . . . Machines Sabotaged . | . . . Overloaded Fab Kills . | . . . Hacking | -11 -10 -10 --------- Run | Yrd Mat Sub Machines Accessed . | . . . Terminals . | . . . Fabricators . | . . . Repair Stations . | . . . Recycling Units . | . . . Scanalyzers . | . . . Garrison Access . | . . . Total Hacks . | . . . Successful . | . . . Failed . | . . . Catastrophic . | . . . Database Lockouts . | . . . Manual . | . . . Terminals . | . . . Fabricators . | . . . Repair Stations . | . . . Recycling Units . | . . . Scanalyzers . | . . . Garrison Access . | . . . Terminal Hacks . | . . . Fabricator Hacks . | . . . Repair Station Hacks . | . . . Recycling Unit Hacks . | . . . Scanalyzer . | . . . Garrison Access Hacks . | . . . Unauthorized Hacks . | . . . Terminals . | . . . Fabricators . | . . . Repair Stations . | . . . Recycling Units . | . . . Scanalyzers . | . . . Garrison Access . | . . . Data Cores Recovered . | . . . Used . | . . . Hacking Detections . | . . . Full Trace Events . | . . . Feedback Events . | . . . Feedback Blocked . | . . . Robot Schematics Acquired . | . . . Robots Built . | . . . Authchips . | . . . Time . | . . . Total Robot Build Rating . | . . . Part Schematics Acquired . | . . . Parts Built . | . . . Authchips . | . . . Time . | . . . Total Part Build Rating . | . . . Part Studies Acquired . | . . . Parts Repaired . | . . . Time . | . . . Parts Recycled . | . . . Recycled Matter . | . . . Retrieved Matter . | . . . Retrieved Components . | . . . Parts Scanalyzed . | . . . Part Schematics Acquired . | . . . Parts Damaged . | . . . Bothacking | -11 -10 -10 ------------ Run | Yrd Mat Sub Used RIF Installer . | . . . Robots Hacked . | . . . Non-combat . | . . . Combat . | . . . Robot Hacks Applied . | . . . Relay Couplers Released . | . . . Fabnet Peak Effective % . | . . . Robots Rewired . | . . . Allies Hacked . | . . . Hacks Repelled . | . . . Allies | -11 -10 -10 -------- Run | Yrd Mat Sub Total Allies . | . . . Largest Group . | . . . Highest-Rated Group . | . . . Highest-Rated Ally . | . . . Total Orders . | . . . Ally Attacks . | . . . Total Damage . | . . . Kills . | . . . Allies Corrupted . | . . . Allies Melted . | . . . Intel | -11 -10 -10 ------- Run | Yrd Mat Sub Active Infowar (turns) . | . . . Robot Analysis Total . | . . . Derelict Logs Recovered . | . . . Drone Launches . | . . . Drone Recoveries . | . . . Exploration | -11 -10 -10 ------------- Run | Yrd Mat Sub Turns Passed 1668 | 42 183 1443 Spaces Moved 1068 | 40 42 986 Core 193 | 25 . 168 Treads 149 | 15 42 92 Legs . | . . . Wheels 726 | . . 726 Hover . | . . . Flight . | . . . Fastest Speed 50 | 50 160 50 Average Speed 109 | 91 160 108 Slowest Speed 400 | 160 160 400 Overloaded Moves . | . . . Propulsion Burnouts . | . . . Robots Hopped . | . . . Potential Cave-ins 3 | . . 3 Cave-ins Triggered 1 | . . 1 Exploration Rate (%) 26 | 3 15 61 Regions Visited 2 Branch Regions 1 Pre-discovered Areas . | . . . Known Exits Taken . | . . . Unknown Exits Taken 2 | 1 1 . Scrap Searched 8 | . . 8 Spaces Dug 11 | . . 11 Terrain Destroyed 26 | . . 26 Melee . | . . . Projectile 26 | . . 26 AOE . | . . . Terrain Rammed 1 | . . 1 Walls Destroyed . | . . . Machines Disabled . | . . . Actions | -11 -10 -10 --------- Run | Yrd Mat Sub Total 1430 | 46 157 1227 Wait 217 | . 114 103 Move 1065 | 39 41 985 Hop . | . . . Pick Up 16 | 4 . 12 Fast Attach 1 | . . 1 Attach 10 | 3 . 7 Detach . | . . . Swap 8 | . . 8 Drop 3 | . . 3 Fire 71 | . . 71 Melee . | . . . Ram 4 | . . 4 Kick . | . . . Crush 34 | . 2 32 Escape Stasis 1 | . . 1 Rewire . | . . . Trap . | . . . Miscellaneous . | . . . Route ------- -11/Scrapyard -10/Materials -10/Subcaves (discovered 2 exits: [*Mat x2]) History --------- Turn | Location | Event 4 | -11/Scrapyard | Discovered new exit (range 15) 43 | -11/Scrapyard | Entered Materials 214 | -10/Materials | Discovered new exit (range 6) 226 | -10/Materials | Entered Subcaves 310 | -10/Subcaves | Build established: Mutant 683 | -10/Subcaves | Core integrity fell below 50% 1051 | -10/Subcaves | Disturbed a concealed Subdweller 1063 | -10/Subcaves | Disturbed a concealed Subdweller 1313 | -10/Subcaves | Crushed by falling debris 1314 | -10/Subcaves | A swath of the cavern ceiling suddenly collapsed 1467 | -10/Subcaves | Discovered new exit (range 13) 1514 | -10/Subcaves | Discovered new exit (range 6) 1618 | -10/Subcaves | Ambushed by Subdweller buried in earth 1668 | -10/Subcaves | Core integrity fell below 20% 1669 | -10/Subcaves | Destroyed by 31-WCJ(R) with Subdweller Beam Cannon Last Messages --------------- Acquired 37 matter. The unstable cave ceiling collapses. Shrapnel Trap crushed. The unstable cave ceiling collapses. Crushed by falling debris. A swath of the cavern ceiling suddenly collapses. S-10 Pest destroyed. EXIT=FOUND 8D-QFS(u) suffers critical hit (Blast). 8D-QFS(u) cries out in pain. 8D-QFS(u) destroyed. Acquired 7 matter. Sub. Laser shoots sparks and powers down. LQ-1XD(R): "ARGHSUB!" LQ-1XD(R) destroyed. The unstable cave ceiling collapses. 2 Matter crushed. YQ-2AB(u) deconstructs Twisted Machinery. 31-WCJ(R): "MADSUB!" Map ----- +----------------------------------------------------+ | ??????????# !&&??????????????????????????????????? | | ??????????# ##?????????????????????????????????? | | ??????????## #######???????????????????????????? | | ???????????# ## # ###?????????????????????????? | | ???????????# ##????????????????????????? | | ??????????## # ##???????????????????????? | | ??????????# ### #???????????????????????? | | ??????????# ## #???????????????????????? | | ?????????## #???????????????????????? | | ?????????#"" ### #?????????????????? ???? | | ?????????# """ #??"????????????######### ???? | | ?????????#####"" ###""????####???# ???? | | ?????????????# """" #""""#### ##?? ???? | | ?????????????# " # ## ##?# ???? | | ?????????????# ## #????# ### ??????? | | ????????????## ## #???## #??????????? | | ????????????# ## ##???#" R #???????????? | | ????????????## ### #???## #???????????? | | ????????????# ## #??## ##??????????? | | ????????????# # #??# ### #???###????? | | ????????????# # ##?# ### #??## #????? | | ????????????## ## #?## ## #### ###### | | ????????????## ## ##?## ### ## # | | ????????????# ## "###" ### | | ????????????# # ###"% #?# | | ????????????## ### @ ## #?# #### | | ?????????????#""## <"" ###### ##?# #??### | | ?????????????###### " ##????# ###??## ????# | | ??????????????????# #?????# ##?????## #???## | | ?????????????????#" #????? #???????## #????## | | ?????????????????## #????? ##????????####?????# | | ??????????????????#####???? ???????????????????## | | ????????????????????????????#????????????????????? | | ?????????????????????????????????????????????????? | | ?????????????????????????????????????????????????? | | ?????????????????????????????????????????????????? | | ?????????????????????????????????????????????????? | | ?????????????????????????????????????????????????? | | ?????????????????????????????????????????????????? | | ?????????????????????????????????????????????????? | | ?????????????????????????????????????????????????? | | ?????????????????????????????????????????????????? | | ?????????????????????????????????????????????????? | | ?????????????????????????????????????????????????? | | ?????????????????????????????????????????????????? | | ?????????????????????????????????????????????????? | | ?????????????????????????????????????????????????? | | | | | | | +----------------------------------------------------+ Best States ------------- Heat Dissipation 25 Energy Generation 15 Energy Capacity 200 Matter Stores 300 Matter Capacity 300 Sight Range 16 Terrain Scan Density 10 Evasion (%) 50 Recoil Reduction 2 Item Schematics ----------------- None Robot Schematics ------------------ None Fabricated ------------ Nothing Repaired ---------- Nothing Studied --------- None Alien Tech Used ----------------- None Achievements -------------- None Challenges ------------ None Game ------ Seed DeepHardlightMicroactuators Manual? 0 Play Time 00:12:32 Cumulative 283.2 hours Start 2026.05.02 @ 12:59:06 End 2026.05.02 @ 15:00:41 Sessions 1 Manual Loads 0 Difficulty Rogue Special Mode None Game No. 742 Rogue 740 Adventurer 2 Explorer 0 Win Type - Total 0 Types 0/0/0/0/0/0/0/0/0/0 Lore% 68 Gallery% 65 Achievement% 45 Wizard Run 0 Options --------- Layout 2 ASCII 0 Keyboard 0 Movement Mouse Keybinds 0 Fullscreen 1 Font 24/Smallcaps Map View 50x44 Zoom Use 0% Tactical HUD 0 Map Filters NONE Filters NONE Steam 1 RUN: 78f26f0d-1a36-474b-b821-3dc22b34c044